bitfinex/quotes_BTCUSD_20260308
["timestamp","ask_amount","ask_price","bid_price","bid_amount"]
[1772950729625,0.08649268,67139.0,67131.0,0.07448123]
[1772950729848,0.01201954,67139.0,67131.0,0.07448123]
[1772950730047,0.01201954,67139.0,67131.0,0.07456463]
[1772950731553,0.08649211,67139.0,67131.0,0.07456463]
[1772950731752,0.07447257,67139.0,67131.0,0.07456463]
[1772950733394,0.07447014,67141.0,67131.0,0.07456463]
[1772950734187,0.07447014,67141.0,67131.0,8.34e-05]
[1772950734388,0.01201954,67140.0,67131.0,8.34e-05]
[1772950735933,0.07447236,67139.0,67132.0,0.07448012]
[1772950737397,0.00148,67142.0,67132.0,0.07448012]
[1772950737622,0.07594928,67142.0,67132.0,0.07448012]
[1772950738421,0.07594928,67142.0,67133.0,0.01216677]
[1772950739432,0.00148,67142.0,67133.0,0.01216677]
[1772950739594,0.00148,67144.0,67135.0,0.01216677]
[1772950739798,0.00148,67144.0,67136.0,0.08664246]
[1772950740210,0.07446422,67147.0,67136.0,0.08664246]
[1772950740425,0.00148,67146.0,67136.0,0.08664246]
[1772950740623,0.08648101,67149.0,67136.0,0.07447569]
[1772950740800,0.00148,67149.0,67138.0,0.02702889]
[1772950741027,0.00148,67150.0,67140.0,0.01216677]
[1772950741226,0.00148,67150.0,67141.0,0.01216677]
[1772950741828,0.07594082,67150.0,67142.0,0.07446903]
[1772950742454,0.01153044,67149.0,67140.0,0.07447031]
[1772950742656,0.01153044,67147.0,67140.0,0.07447031]
[1772950744045,0.01153044,67147.0,67136.0,0.07447569]
[1772950745925,0.07446201,67149.0,67137.0,0.01165716]
[1772950746242,0.07446201,67149.0,67138.0,0.07447347]
[1772950750607,0.0860783,67148.0,67136.0,0.07447569]
[1772950750978,0.0860783,67148.0,67136.0,0.08646796]
[1772950751177,0.07446313,67148.0,67136.0,0.08646796]
[1772950751409,0.07446313,67148.0,67137.0,0.01199227]
[1772950752700,0.07446313,67148.0,67138.0,0.07447347]
[1772950754620,0.01161517,67146.0,67132.0,0.04619961]
[1772950754824,0.01161517,67139.0,67132.0,0.017418]
[1772950755019,0.00148,67138.0,67132.0,0.017418]
[1772950756717,0.00148,67138.0,67126.0,0.0282795]
[1772950756718,0.01161517,67137.0,67126.0,0.07448567]
[1772950756902,0.01161517,67135.0,67126.0,0.07460564]
[1772950757662,0.01161517,67135.0,67126.0,0.04632725]
[1772950758962,0.0744779,67134.0,67126.0,0.04632725]
[1772950760678,0.0744779,67134.0,67124.0,0.0002]
[1772950761014,0.01161517,67131.0,67124.0,0.074689]
[1772950762377,0.07448129,67131.0,67124.0,0.074689]
[1772950762579,0.01161517,67130.0,67124.0,0.0002]
[1772950763420,0.01161517,67130.0,67126.0,0.0002]
[1772950763938,0.00148,67132.0,67126.0,0.0002]
[1772950764291,0.07596027,67132.0,67126.0,0.0002]
[1772950764894,0.08757544,67132.0,67124.0,0.0002]
[1772950765329,0.01161517,67131.0,67124.0,0.0002]
[1772950765529,0.01161517,67131.0,67122.0,0.0002]
[1772950765685,0.01161517,67131.0,67122.0,0.07469108]
[1772950766326,0.07448234,67130.0,67122.0,0.0002]
[1772950767434,0.01161517,67129.0,67120.0,0.0002]
[1772950767773,0.07448234,67130.0,67110.0,0.07450402]
[1772950767774,0.01161517,67125.0,67110.0,0.07450402]
[1772950767975,0.01161517,67123.0,67110.0,0.07450402]
[1772950768525,0.01161517,67123.0,67109.0,0.0746267]
[1772950768526,0.01161517,67121.0,67109.0,0.0746267]
[1772950768985,0.01161517,67121.0,67109.0,0.0001217]
[1772950770530,0.01161517,67121.0,67108.0,0.07450596]
[1772950770531,0.01161517,67119.0,67108.0,0.07450596]
[1772950770702,0.01161517,67117.0,67108.0,0.07450596]
[1772950770907,0.01161517,67117.0,67106.0,0.00575]
[1772950772316,0.00148,67118.0,67106.0,1e-08]
[1772950772317,0.01161517,67115.0,67106.0,1e-08]
[1772950772526,0.01161517,67113.0,67106.0,1e-08]
[1772950772744,0.01161517,67111.0,67106.0,1e-08]
[1772950773743,0.01161517,67111.0,67106.0,8.942e-05]
[1772950775188,0.01161517,67109.0,67100.0,0.0012]
[1772950775388,0.01161517,67109.0,67100.0,0.00130137]
[1772950775588,0.07450454,67110.0,67100.0,0.00130137]
[1772950777402,0.07450454,67110.0,67098.0,0.07461849]
[1772950777403,0.01161517,67109.0,67098.0,0.0001008]
[1772950777702,0.01161517,67109.0,67098.0,0.00014251]
[1772950779151,0.07450676,67108.0,67098.0,0.00014251]
[1772950779280,0.01354585,67107.0,67095.0,0.07452024]
[1772950779682,0.01354585,67107.0,67094.0,0.15904076]
[1772950780131,0.01354585,67107.0,67098.0,0.0002]
[1772950781201,0.01206585,67105.0,67098.0,0.0002]
[1772950783352,0.0745112,67104.0,67098.0,0.0002]
[1772950784361,0.0743612,67104.0,67098.0,0.0002]
[1772950785356,0.0745112,67105.0,67098.0,0.0002]
[1772950785555,0.01206585,67104.0,67094.0,0.0845187]
[1772950786337,0.01354585,67104.0,67094.0,0.0845187]
[1772950787186,0.01354585,67104.0,67094.0,0.0847187]
[1772950787391,0.01206585,67102.0,67094.0,0.0847187]
[1772950788472,0.07451231,67103.0,67094.0,0.0847187]
[1772950788676,0.01206585,67102.0,67094.0,0.0847187]
[1772950789476,0.07451453,67101.0,67094.0,0.0847187]
[1772950789792,0.01206585,67100.0,67094.0,0.01305767]
[1772950790006,0.01206585,67098.0,67094.0,0.01305767]
[1772950790558,0.00148,67099.0,67094.0,0.01305767]
[1772950791758,0.07451786,67098.0,67091.0,0.0002]
[1772950793991,0.01206585,67097.0,67091.0,0.0002]
[1772950795105,0.01206585,67097.0,67087.0,0.0003865]
[1772950795650,0.04937849,67097.0,67080.0,0.0002]
[1772950795777,0.01206585,67091.0,67080.0,0.00040005]
[1772950795982,0.01206585,67089.0,67072.0,0.01293067]
[1772950796214,0.01246562,67089.0,67072.0,0.01293067]
[1772950796530,0.04937849,67085.0,67067.0,0.0001865]
[1772950796712,0.00039977,67089.0,67069.0,0.01293067]
[1772950796881,0.00148,67088.0,67073.0,0.01293067]
[1772950797081,0.00148,67088.0,67074.0,0.02959055]
[1772950797276,0.01354585,67088.0,67074.0,0.02959055]
[1772950798087,0.08659593,67087.0,67074.0,0.02959055]
[1772950798811,0.04977849,67100.0,67077.0,0.02959055]
[1772950799155,0.00148,67093.0,67082.0,0.01293067]
[1772950799283,0.00148,67093.0,67084.0,0.01293067]
[1772950799487,0.00148,67093.0,67087.0,0.02959055]
[1772950800404,0.07452453,67092.0,67081.0,0.07453627]
[1772950800742,0.07452453,67092.0,67077.0,0.00039977]
[1772950800743,0.04937849,67091.0,67077.0,0.00039977]
[1772950800942,0.04937849,67091.0,67052.0,0.00575]
[1772950800943,0.01206585,67086.0,67073.0,0.02959055]
[1772950801185,0.00148,67085.0,67073.0,0.10413553]
[1772950801369,0.01246562,67086.0,67073.0,0.07454498]
[1772950801370,0.00039977,67086.0,67073.0,0.07454498]
[1772950801578,0.00148,67084.0,67076.0,0.01293067]
[1772950801727,0.00148,67084.0,67079.0,0.02959055]
[1772950802074,0.00148,67083.0,67081.0,0.0284217]
[1772950802435,0.01469434,67094.0,67084.0,0.02823431]
[1772950802640,0.0001865,67103.0,67087.0,0.01498191]
[1772950802837,0.07450727,67108.0,67089.0,0.02823431]
[1772950803062,0.07598645,67109.0,67092.0,0.01498191]
[1772950803375,0.00022001,67111.0,67084.0,8.921e-05]
[1772950803376,0.07620452,67111.0,67096.0,0.01498191]
[1772950803677,0.07620452,67111.0,67102.0,0.01498191]
[1772950803678,0.07472452,67111.0,67102.0,0.01498191]
[1772950803854,0.07472452,67111.0,67104.0,0.02823431]
[1772950804259,0.07620452,67111.0,67104.0,0.02823431]
[1772950805041,0.07472452,67111.0,67104.0,0.02823431]
[1772950805253,0.07620452,67111.0,67104.0,0.02823431]
[1772950805493,0.01407792,67110.0,67099.0,0.00148]
[1772950805646,0.01555792,67110.0,67099.0,0.00148]
[1772950806070,0.00148,67109.0,67099.0,0.00148]
[1772950806475,0.01407792,67108.0,67094.0,0.10275623]
[1772950806696,0.01407792,67106.0,67094.0,0.07452192]
[1772950806901,0.07450787,67107.0,67095.0,0.02823431]
[1772950807193,0.07450787,67107.0,67096.0,0.02823431]
[1772950807704,0.07450787,67107.0,67097.0,0.02823431]
[1772950807905,0.07450787,67107.0,67098.0,0.02823431]
[1772950808707,0.07450787,67107.0,67100.0,0.02823431]
[1772950810098,0.07450787,67107.0,67097.0,0.0745186]
[1772950810298,0.07450787,67107.0,67096.0,0.02823431]
[1772950810499,0.01466259,67106.0,67095.0,0.02823431]
[1772950811119,0.07450787,67107.0,67095.0,0.02823431]
[1772950811323,0.07450787,67107.0,67096.0,0.01414015]
[1772950811520,0.07450787,67108.0,67099.0,0.02823431]
[1772950811903,0.00015,67106.0,67099.0,0.02823431]
[1772950812304,0.07450787,67108.0,67097.0,0.07451823]
[1772950812580,0.07450787,67108.0,67099.0,0.01414015]
[1772950812750,0.07450787,67108.0,67100.0,0.02823431]
[1772950813538,0.07450787,67108.0,67094.0,0.0002]
[1772950813722,0.01466259,67107.0,67094.0,0.00168]
[1772950814059,0.07450898,67106.0,67094.0,0.0002]
[1772950814255,0.07450898,67106.0,67094.0,0.02991431]
[1772950814555,0.01466259,67105.0,67094.0,0.0002]
[1772950816157,0.0745112,67104.0,67094.0,0.0002]
[1772950816390,0.01614259,67103.0,67094.0,0.0002]
[1772950818426,0.07451342,67102.0,67094.0,0.0002]
[1772950820878,0.07551342,67102.0,67094.0,0.0002]
[1772950821234,0.001,67102.0,67094.0,0.0002]
[1772950821450,0.07451342,67102.0,67095.0,0.02823431]
[1772950824060,0.07599342,67102.0,67095.0,0.02823431]
[1772950825088,0.07599342,67102.0,67094.0,0.0002]
[1772950827696,0.07599342,67102.0,67095.0,0.04237446]
[1772950828021,0.01607534,67103.0,67094.0,0.0002]
[1772950828347,0.07451009,67107.0,67096.0,0.01414015]
[1772950828507,0.07450814,67107.0,67097.0,0.01414015]
[1772950829182,0.07450814,67107.0,67099.0,0.01414015]
[1772950829622,0.00148,67110.0,67099.0,0.01414015]
[1772950829779,0.00170001,67111.0,67099.0,0.01414015]
[1772950829979,0.00022001,67111.0,67099.0,0.01414015]
[1772950830528,0.0885518,67117.0,67103.0,0.01414015]
[1772950830734,0.0885518,67117.0,67098.0,0.07451786]
[1772950830735,0.0885518,67117.0,67105.0,0.01414015]
[1772950831293,0.0885518,67117.0,67107.0,0.01414015]
[1772950831842,0.08867193,67117.0,67107.0,0.01414015]
[1772950832424,0.01417472,67117.0,67107.0,0.01414015]
[1772950832823,0.08867156,67117.0,67107.0,0.01414015]
[1772950833411,0.08867156,67117.0,67108.0,0.07450676]
[1772950833613,0.08867156,67117.0,67108.0,0.08864691]
[1772950834911,0.08867156,67117.0,67107.0,0.07450689]
[1772950835137,0.01466259,67113.0,67096.0,0.01414015]
[1772950835343,0.02991219,67112.0,67097.0,0.01562015]
[1772950835543,0.02991219,67110.0,67098.0,0.07451786]
[1772950836144,0.07450343,67111.0,67099.0,0.00148]
[1772950836145,0.02991219,67108.0,67099.0,0.00148]
[1772950836362,0.07450343,67111.0,67099.0,0.01562015]
[1772950837877,0.07450343,67111.0,67100.0,0.07451564]
[1772950838075,0.10441562,67111.0,67100.0,0.07451564]
[1772950838658,0.07450343,67111.0,67100.0,0.07451564]
[1772950838960,0.02991219,67110.0,67100.0,0.07451564]
[1772950839162,0.02991219,67110.0,67097.0,0.07451871]
[1772950839163,0.01621116,67107.0,67097.0,0.07451871]
[1772950839365,0.02951091,67104.0,67097.0,0.07451871]
[1772950839766,0.02951091,67104.0,67094.0,0.07472163]
[1772950839968,0.02951091,67104.0,67094.0,0.0002]
[1772950840217,0.07451009,67105.0,67093.0,0.07452335]
[1772950840218,0.02951091,67102.0,67093.0,0.07452335]
[1772950840511,0.02951091,67100.0,67093.0,0.07452335]
[1772950841299,0.104021,67105.0,67093.0,0.07452335]
[1772950841670,0.00148,67106.0,67094.0,0.01598757]
[1772950841874,0.00148,67107.0,67095.0,0.0745212]
[1772950842194,0.00148,67107.0,67096.0,0.01598757]
[1772950842394,0.00148,67109.0,67096.0,0.01598757]
[1772950842578,0.07472477,67110.0,67096.0,0.01598757]
[1772950844221,0.07472477,67110.0,67098.0,0.01598757]
[1772950844574,0.07472477,67110.0,67099.0,0.00148]
[1772950844781,0.07472477,67110.0,67099.0,0.01746757]
[1772950846630,0.07472477,67110.0,67100.0,0.07451564]
[1772950847625,0.07472477,67110.0,67101.0,0.01598757]
[1772950849248,0.07472477,67110.0,67102.0,0.07451342]
[1772950849249,0.00022001,67110.0,67102.0,0.07451342]
[1772950849429,0.00148,67113.0,67103.0,0.01598757]
[1772950849953,0.00148,67115.0,67103.0,0.01598757]
[1772950850293,0.08889163,67117.0,67103.0,0.02994723]
[1772950850478,0.08889163,67117.0,67104.0,0.01598757]
[1772950850678,0.08889163,67117.0,67106.0,0.01598757]
[1772950851267,0.01439473,67117.0,67108.0,0.01598757]
[1772950851650,0.00033996,67117.0,67108.0,0.01598757]
[1772950852238,0.07483697,67117.0,67108.0,0.01598757]
[1772950853287,0.07483697,67117.0,67109.0,0.07450565]
[1772950853587,0.02951091,67116.0,67109.0,0.07450565]
[1772950854573,0.02951091,67114.0,67107.0,0.07450728]
[1772950854789,0.02951091,67113.0,67107.0,0.07450728]
[1772950855307,0.07483697,67117.0,67107.0,0.07450728]
[1772950855693,0.10434788,67117.0,67106.0,0.07450812]
[1772950856578,0.07483697,67117.0,67107.0,0.01598757]
[1772950857551,0.07483697,67117.0,67107.0,0.01618757]
[1772950857749,0.07483697,67117.0,67108.0,0.07450676]
[1772950860099,0.00022001,67122.0,67109.0,0.01598757]
[1772950860308,0.00046211,67124.0,67111.0,0.01598757]
[1772950860480,0.00062001,67125.0,67114.0,0.01598757]
[1772950862007,0.00062001,67125.0,67115.0,0.09263802]
[1772950862208,0.09352134,67125.0,67116.0,0.00148]
[1772950862526,0.09352134,67125.0,67111.0,0.07598307]
[1772950862527,0.04888041,67120.0,67111.0,0.07598307]
[1772950862676,0.03046709,67119.0,67111.0,0.07450307]
[1772950863082,0.00148,67124.0,67111.0,0.07450307]
[1772950863301,0.03194709,67124.0,67111.0,0.07450307]
[1772950863925,0.07510802,67125.0,67112.0,0.01813903]
[1772950863926,0.00062001,67125.0,67112.0,0.01813903]
[1772950864127,0.07589459,67130.0,67114.0,0.01813903]
[1772950864307,0.00148,67129.0,67114.0,0.01813903]
[1772950864828,0.00148,67128.0,67114.0,0.01813903]
[1772950864990,0.03194709,67128.0,67114.0,0.01813903]
[1772950865332,0.03194709,67128.0,67114.0,0.01827423]
[1772950865333,0.00148,67128.0,67114.0,0.01827423]
[1772950865551,0.03194709,67128.0,67114.0,0.01827423]
[1772950866575,0.01841332,67126.0,67115.0,0.07449899]
[1772950866777,0.03046709,67126.0,67116.0,0.00148]
[1772950867252,0.03046709,67126.0,67115.0,0.07463419]
[1772950867404,0.03046709,67126.0,67116.0,0.00148]
[1772950867829,0.07448567,67127.0,67116.0,0.00148]
[1772950868133,0.07448567,67127.0,67116.0,0.01961903]
[1772950868871,0.07448567,67127.0,67117.0,0.07449677]
[1772950869091,0.00141196,67130.0,67118.0,0.01812674]
[1772950871198,0.00141196,67130.0,67119.0,0.07449455]
[1772950871366,0.00141196,67130.0,67120.0,0.01812674]
[1772950872393,0.00163197,67130.0,67120.0,0.01812674]
[1772950874387,0.00163197,67130.0,67122.0,0.01812674]
[1772950874584,0.00163197,67130.0,67123.0,0.00148]
[1772950874982,0.00575,67133.0,67124.0,0.01812674]
[1772950876406,0.00575,67133.0,67125.0,0.07448789]
[1772950876623,0.00022001,67134.0,67125.0,0.07448789]
[1772950876836,0.07447695,67135.0,67125.0,0.07448789]
[1772950877336,0.0306871,67137.0,67125.0,0.07448789]
[1772950877537,0.00022001,67137.0,67126.0,0.01812674]
[1772950878343,0.00022001,67137.0,67127.0,0.07448567]
[1772950878540,0.00022001,67137.0,67128.0,0.01812674]
[1772950878746,0.00022001,67137.0,67127.0,0.07448567]
[1772950878747,0.00022001,67137.0,67129.0,0.00148]
[1772950879359,0.00022001,67134.0,67129.0,0.00148]
[1772950879556,0.00148,67133.0,67116.0,0.07449788]
[1772950880083,0.03046709,67130.0,67116.0,0.07449788]
[1772950880285,0.03046709,67128.0,67116.0,0.07597788]
[1772950880526,0.03046709,67127.0,67116.0,0.07597788]
[1772950883487,0.03046709,67127.0,67117.0,0.00148]
[1772950884327,0.07448419,67129.0,67118.0,0.01812674]
[1772950885344,0.07448013,67132.0,67119.0,0.07449455]
[1772950885345,0.03046709,67131.0,67119.0,0.07449455]
[1772950886113,0.03046709,67131.0,67120.0,0.00148]
[1772950887769,0.07448054,67132.0,67121.0,0.07449233]
[1772950887987,0.07448054,67132.0,67122.0,0.01812674]
[1772950888392,0.07448054,67132.0,67122.0,0.01960674]
[1772950889325,0.07595915,67133.0,67122.0,0.01960674]
[1772950889662,0.07595915,67133.0,67123.0,0.07449011]
[1772950889943,0.07595915,67133.0,67123.0,0.09261685]
[1772950890504,0.07595915,67133.0,67124.0,0.01812674]
[1772950892475,0.07469469,67137.0,67126.0,0.01812674]
[1772950892652,0.07469469,67137.0,67125.0,0.07448789]
[1772950892653,0.00022001,67137.0,67128.0,0.01812674]
[1772950893019,0.00022001,67134.0,67128.0,0.01812674]
[1772950893214,0.00022001,67137.0,67128.0,0.01812674]
[1772950893468,0.07469492,67137.0,67125.0,0.07448789]
[1772950893699,0.07469492,67137.0,67126.0,0.00148]
[1772950894194,0.03032574,67135.0,67127.0,0.00148]
[1772950894397,0.10480364,67134.0,67127.0,0.00148]
[1772950894747,0.10480364,67134.0,67127.0,0.07596543]
[1772950899287,0.0744779,67134.0,67127.0,0.07596543]
[1772950899469,0.10480364,67134.0,67127.0,0.07596543]
[1772950900221,0.01844067,67136.0,67127.0,0.07596543]
[1772950900422,0.00148,67139.0,67127.0,0.07596543]
[1772950900641,0.00148,67139.0,67128.0,0.01907675]
[1772950901217,0.00022001,67134.0,67128.0,0.01907675]
[1772950905275,0.01927798,67142.0,67128.0,0.01907675]
[1772950905276,0.07446602,67145.0,67130.0,0.01907675]
[1772950905490,0.1793053,67147.0,67131.0,0.00148]
[1772950905713,0.12425831,67147.0,67131.0,0.02055675]
[1772950906119,0.04979372,67147.0,67132.0,0.02055675]
[1772950906499,0.0499138,67147.0,67133.0,0.00148]
[1772950906722,0.0499138,67147.0,67133.0,0.02055675]
[1772950907141,0.0499138,67147.0,67133.0,0.01907675]
[1772950907347,0.0499138,67147.0,67135.0,0.0744768]
[1772950907553,0.1243774,67147.0,67135.0,0.0744768]
[1772950908151,0.07477368,67147.0,67135.0,0.00148]
[1772950908349,0.03032574,67144.0,67135.0,0.00148]
[1772950908527,0.04960372,67142.0,67135.0,0.00148]
[1772950908732,0.01927798,67140.0,67130.0,0.07448221]
[1772950908915,0.03032574,67137.0,67128.0,0.07448441]
[1772950909250,0.03032574,67137.0,67130.0,0.04551605]
[1772950909251,0.09375398,67136.0,67130.0,0.04551605]
[1772950909854,0.074476,67136.0,67124.0,0.07468804]
[1772950910152,0.01927798,67135.0,67124.0,0.07616804]
[1772950911353,0.0744779,67134.0,67124.0,0.07616804]
[1772950912956,0.01927798,67135.0,67124.0,0.07616804]
[1772950913157,0.07447622,67136.0,67125.0,0.01907675]
[1772950913355,0.07447366,67138.0,67126.0,0.09356353]
[1772950915395,0.07469367,67138.0,67126.0,0.07448678]
[1772950919389,0.07469367,67138.0,67126.0,0.09356353]
[1772950919820,0.07469367,67138.0,67127.0,0.02835641]
[1772950920120,0.00148,67144.0,67129.0,0.02835641]
[1772950920278,0.07594681,67144.0,67130.0,0.02055675]
[1772950920480,0.01927798,67143.0,67130.0,0.00148]
[1772950920696,0.03032574,67143.0,67130.0,0.00148]
[1772950920896,0.01927798,67142.0,67130.0,0.00148]
[1772950921106,0.07447014,67141.0,67131.0,0.07448123]
[1772950924659,0.0296547,67140.0,67120.0,0.07449325]
[1772950924864,0.0296547,67139.0,67122.0,0.07469098]
[1772950925021,0.0296547,67137.0,67123.0,0.07483974]
[1772950925885,0.07447569,67136.0,67123.0,0.07483974]
[1772950926057,0.0296547,67135.0,67123.0,0.07483974]
[1772950928176,0.0744779,67134.0,67123.0,0.07483974]
[1772950928952,0.0747099,67134.0,67123.0,0.07483974]
[1772950929740,0.0747099,67134.0,67124.0,0.02386494]
[1772950929945,0.000232,67134.0,67124.0,0.02386494]
[1772950930145,0.000232,67134.0,67123.0,0.07483974]
[1772950930146,0.07607191,67142.0,67128.0,0.02386494]
[1772950930421,0.07607191,67142.0,67130.0,0.02386494]
[1772950930618,0.07459191,67142.0,67130.0,0.02386494]
[1772950931371,0.0001218,67142.0,67132.0,0.02386494]
[1772950931574,0.0001218,67142.0,67131.0,0.00148]
[1772950931575,0.0001218,67142.0,67133.0,0.03066502]
[1772950931776,0.0001218,67142.0,67134.0,0.03066502]
[1772950931993,0.0296547,67141.0,67123.0,0.03101502]
[1772950932198,0.0296547,67139.0,67124.0,0.07448823]
[1772950932395,0.0296547,67139.0,67125.0,0.00148]
[1772950933923,0.0296547,67139.0,67124.0,0.07448823]
[1772950934308,0.0296547,67137.0,67124.0,0.07448823]
[1772950934510,0.0296547,67137.0,67123.0,0.074839]
[1772950934511,0.0296547,67137.0,67123.0,0.00035]
[1772950934750,0.0296547,67137.0,67123.0,0.07483956]
[1772950936719,0.07447569,67136.0,67123.0,0.07483956]
[1772950938669,0.10413039,67136.0,67123.0,0.07483956]
[1772950939279,0.0296547,67135.0,67123.0,0.07483956]
[1772950939483,0.00148,67134.0,67119.0,0.0001218]
[1772950939700,0.08879789,67130.0,67119.0,0.0001218]
[1772950940477,0.08879789,67130.0,67114.0,0.0002]
[1772950940478,0.04930992,67130.0,67114.0,0.0002]
[1772950940727,0.0296547,67129.0,67114.0,0.0002]
[1772950940965,0.03965171,67127.0,67114.0,0.0002]
[1772950941129,0.07448678,67126.0,67114.0,0.0002]
[1772950942088,0.07448678,67126.0,67115.0,0.0004706]
[1772950948759,0.0296547,67125.0,67110.0,0.0747043]
[1772950948921,0.0296547,67123.0,67110.0,0.07482425]
[1772950949122,0.00148,67122.0,67110.0,0.00031995]
[1772950949311,0.00148,67122.0,67110.0,0.07482419]
[1772950949517,0.00148,67122.0,67110.0,0.00031995]
[1772950949518,0.0311347,67122.0,67110.0,0.00031995]
[1772950950773,0.07449233,67121.0,67110.0,0.00031995]
[1772950951397,0.07449233,67121.0,67110.0,0.02061596]
[1772950952459,0.07449233,67121.0,67110.0,0.09512043]
[1772950952656,0.07449233,67121.0,67110.0,0.07482442]
[1772950952885,0.0759714,67122.0,67113.0,0.02031819]
[1772950953262,0.0744914,67122.0,67113.0,0.02031819]
[1772950953466,0.07448872,67125.0,67115.0,0.02031819]
[1772950953672,0.07448872,67125.0,67117.0,0.02033812]
[1772950955669,0.11900238,67138.0,67118.0,0.02884544]
[1772950955871,0.11900238,67138.0,67122.0,0.02884544]
[1772950955872,0.07469615,67136.0,67122.0,0.02884544]
[1772950956089,0.07469615,67136.0,67123.0,0.02884544]
[1772950956295,0.07469615,67136.0,67124.0,0.02035702]
[1772950957168,0.07469615,67136.0,67125.0,0.02035702]
[1772950959994,0.07469615,67136.0,67125.0,0.09484443]
[1772950960200,0.07595394,67138.0,67126.0,0.02884544]
[1772950960360,0.00022001,67143.0,67125.0,0.07596741]
[1772950960568,0.07468385,67147.0,67138.0,0.02041832]
[1772950960880,0.07468285,67148.0,67139.0,0.02041832]
[1772950961671,0.07480214,67148.0,67139.0,0.02041832]
[1772950961874,0.07480214,67148.0,67140.0,0.07447125]
[1772950962074,0.07480214,67148.0,67141.0,0.02043372]
[1772950963285,0.07480214,67148.0,67142.0,0.02043372]
[1772950965114,0.07594168,67149.0,67142.0,0.02043372]
[1772950965277,0.0746762,67154.0,67143.0,0.03032544]
[1772950965485,0.10419423,67164.0,67147.0,0.02884544]
[1772950965486,0.07445018,67159.0,67147.0,0.02884544]
[1772950965684,0.07445018,67159.0,67148.0,0.02046816]
[1772950966250,0.00022001,67155.0,67148.0,0.02046816]
[1772950967231,0.07445018,67161.0,67150.0,0.02046816]
[1772950967428,0.00040471,67162.0,67153.0,0.02884544]
[1772950967429,0.07466743,67162.0,67153.0,0.02884544]
[1772950967651,0.07466743,67162.0,67154.0,0.02046816]
[1772950970290,0.07466743,67162.0,67155.0,0.02074329]
[1772950972396,0.07466743,67162.0,67156.0,0.02079242]
[1772950973466,0.07466743,67162.0,67156.0,0.07445328]
[1772950973621,0.04192644,67162.0,67157.0,0.02064242]
[1772950974268,0.04192644,67162.0,67148.0,0.07466149]
[1772950974567,0.04192644,67162.0,67151.0,0.07445858]
[1772950975181,0.04192644,67162.0,67151.0,0.09518492]
[1772950978601,0.07444656,67163.0,67151.0,0.09518492]
[1772950979744,0.07444656,67163.0,67151.0,0.07445858]
[1772950979949,0.07444656,67163.0,67152.0,0.02114123]
[1772950980181,0.07444685,67164.0,67152.0,0.02114123]
[1772950980852,0.07444685,67162.0,67153.0,0.07445683]
[1772950985289,0.07444685,67162.0,67152.0,0.09559847]
[1772950985493,0.02848824,67161.0,67150.0,0.07445978]
[1772950985748,0.00148,67160.0,67150.0,0.07445978]
[1772950986076,0.00148,67160.0,67151.0,0.02116962]
[1772950986280,0.00148,67160.0,67152.0,0.02116962]
[1772950986407,0.00148,67160.0,67153.0,0.02116962]
[1772950987432,0.00148,67160.0,67155.0,0.02116962]
[1772950988030,0.00170001,67163.0,67155.0,0.02116962]
[1772950988256,0.00022001,67161.0,67155.0,0.02116962]
[1772950989657,0.00022001,67161.0,67157.0,0.02119191]
[1772950990300,0.00148,67165.0,67157.0,0.02119191]
[1772950990912,0.07466067,67168.0,67156.0,0.07445351]
[1772950990913,0.00022001,67168.0,67159.0,0.02119191]
[1772950991962,0.00022001,67168.0,67161.0,0.02119214]
[1772950992806,0.07466027,67168.0,67161.0,0.02119214]
[1772950994119,0.07466027,67168.0,67162.0,0.07444685]
[1772950995224,0.02848824,67167.0,67156.0,0.07593289]
[1772950995520,0.02848824,67167.0,67154.0,0.07445351]
[1772950996425,0.10293066,67166.0,67154.0,0.07445351]
[1772950997058,0.02848824,67165.0,67154.0,0.07445351]
[1772950997230,0.02996824,67164.0,67154.0,0.07445351]
[1772950998295,0.02996824,67164.0,67148.0,0.07466187]
[1772950998500,0.02848824,67162.0,67148.0,0.07466187]
[1772950999789,0.07444575,67163.0,67149.0,0.02151785]
[1772951002679,0.10293399,67163.0,67149.0,0.02151785]
[1772951003076,0.10293399,67163.0,67149.0,0.02171785]
[1772951003800,0.103154,67163.0,67149.0,0.02171785]
[1772951006311,0.02848824,67162.0,67149.0,0.02171785]
[1772951008101,0.07444796,67161.0,67149.0,0.02171785]
[1772951009132,0.02848824,67159.0,67147.0,0.00040006]
[1772951009331,0.02848824,67157.0,67143.0,0.00148]
[1772951009502,0.0288883,67157.0,67143.0,0.00148]
[1772951009704,0.0288883,67157.0,67142.0,0.0002]
[1772951010807,0.10294175,67156.0,67142.0,0.0002]
[1772951012310,0.10294175,67156.0,67149.0,0.0002]
[1772951014861,0.07445351,67156.0,67149.0,0.0002]
[1772951023583,0.07445351,67156.0,67149.0,0.02139185]
[1772951028060,0.07468231,67156.0,67149.0,0.02139185]
[1772951028197,0.07490232,67156.0,67149.0,0.02139185]
[1772951032864,0.07490232,67156.0,67142.0,0.10487027]
[1772951032865,0.0286688,67154.0,67142.0,0.0002]
[1772951033060,0.04927533,67152.0,67142.0,0.0002]
[1772951033320,0.02086853,67152.0,67142.0,0.0002]
[1772951033517,0.04953733,67152.0,67142.0,0.0002]
[1772951034398,0.0286688,67152.0,67142.0,0.0002]
[1772951034577,0.02086853,67151.0,67142.0,0.0002]
[1772951035033,0.02086853,67151.0,67137.0,0.0002]
[1772951035034,0.0286688,67148.0,67137.0,0.0002]
[1772951035211,0.00148,67147.0,67137.0,0.0002]
[1772951037037,0.07446459,67146.0,67137.0,0.0002]
[1772951045069,0.07446459,67146.0,67137.0,0.02002013]
[1772951057922,0.07446459,67146.0,67137.0,0.0002]
[1772951058968,0.07446459,67146.0,67135.0,0.0002]
[1772951059171,0.02700747,67145.0,67135.0,0.0002]
[1772951059979,0.07446681,67144.0,67135.0,0.0002]
[1772951062200,0.07446681,67144.0,67137.0,0.0002]
[1772951063376,0.07446681,67144.0,67134.0,0.0002]
[1772951063582,0.10147428,67144.0,67134.0,0.0002]
[1772951066885,0.10147428,67144.0,67126.0,0.00148]
[1772951066886,0.07446681,67144.0,67126.0,0.00148]
[1772951067087,0.07631244,67140.0,67125.0,0.01886612]
[1772951067287,0.00148,67139.0,67125.0,0.01886612]
[1772951068223,0.00148,67139.0,67125.0,0.09335398]
[1772951068424,0.07447347,67138.0,67125.0,0.09335398]
[1772951069193,0.07447347,67138.0,67125.0,0.01886612]
[1772951069607,0.07447347,67138.0,67127.0,0.0002]
[1772951070446,0.07447347,67138.0,67127.0,0.01866612]
[1772951075223,0.07447347,67138.0,67127.0,0.0002]
[1772951076652,0.07447347,67138.0,67120.0,0.0746933]
[1772951076853,0.03224547,67137.0,67120.0,0.0002]
[1772951077026,0.02601892,67135.0,67120.0,0.0002]
[1772951077219,0.00148,67134.0,67120.0,0.09315946]
[1772951077795,0.07447901,67133.0,67121.0,0.01846612]
[1772951078262,0.07452069,67133.0,67121.0,0.01846612]
[1772951082383,0.07452069,67133.0,67121.0,0.01866612]